Cogmind - Beta 16.1 @@@ ROGUE MODE // 2026.02.28 @ 22:38:44 Player: Zable Result: Destroyed self with Grenade Launcher Performance ------------- Evolutions (0) 0 Regions Visited (2) 400 Robots Destroyed (19) 95 Value Destroyed (504) 504 Prototype IDs (0) 0 Alien Tech Used (0) 0 Bonus (0) 0 TOTAL SCORE: 999 Bonus ------- None Cogmind --------- Core Integrity 0/250 Matter 205/300 Energy 115/125 System Corruption 0% Temperature Cool (0) Movement Walking (120) Location -10/Subcaves Parts ------- > --- POWER (1) -------- Light Ion Engine > --- PROPULSION (2) --- Aluminum Leg Aluminum Leg > --- UTILITY (2) ------ Small Storage Unit > --- WEAPON (2) ------- Medium Laser Grenade Launcher > --- INVENTORY (8) ---- Aluminum Leg Wheel Compact Wheel High-capacity Matter Pod (200) Signal Interpreter Light Armor Plating Medium Laser Mining Claw Peak State ------------ > --- POWER ------------ Ion Engine > --- PROPULSION ------- Aluminum Leg Aluminum Leg > --- UTILITY ---------- Small Storage Unit Seismic Detector > --- WEAPON ----------- Medium Laser Light Assault Rifle > --- INVENTORY -------- Light Ion Engine Light Treads Light Treads Wheel Compact Wheel Medium Laser [Rating: 7] Favorites ----------- Power Ion Engine Engine Ion Engine Propulsion Aluminum Leg Leg Aluminum Leg Utility Small Storage Unit Device Seismic Detector Storage Small Storage Unit Weapon Medium Laser Energy Gun Medium Laser Ballistic Gun Light Assault Rifle Launcher Grenade Launcher Slashing Weapon Mining Claw Build | -11 -10 -10 ------- Run | Yrd Mat Sub Slots Evolved . | . . . Power . | . . . Propulsion . | . . . Utility . | . . . Weapon . | . . . Parts Attached 10 | 1 9 . Power 1 | . 1 . Engine 1 | . 1 . Core . | . . . Reactor . | . . . Propulsion 2 | . 2 . Treads . | . . . Leg 2 | . 2 . Wheel . | . . . Hover . | . . . Flight . | . . . Utility 2 | 1 1 . Device 2 | 1 1 . Storage . | . . . Processor . | . . . Hackware . | . . . Protection . | . . . Artifact . | . . . Weapon 5 | . 5 . Energy Gun 3 | . 3 . Energy Cannon . | . . . Ballistic Gun . | . . . Ballistic Cannon . | . . . Launcher 1 | . 1 . Special Weapon . | . . . Impact Weapon . | . . . Slashing Weapon 1 | . 1 . Piercing Weapon . | . . . Special Melee Weapon . | . . . Unidentified Prototypes . | . . . Parts Lost 5 | . 4 1 Power 1 | . 1 . Propulsion 1 | . 1 . Utility 2 | . 1 1 Weapon 1 | . 1 . Highest Loss Streak 4 | . 4 1 To Critical Strikes . | . . . Average Backups 7 | 6 7 8 Power . | 1 . . Propulsion 2 | 4 2 3 Utility 2 | . 2 3 Weapon 2 | 1 2 2 Tool/Special . | . . . Unused Backups 15 | 6 4 5 Power 2 | 1 1 . Propulsion 7 | 2 3 2 Utility 4 | 1 . 3 Weapon 2 | 2 . . Tool/Special . | . . . Average Slot Usage (%) 93 | . 92 98 Engine 10 | . 9 14 Leg 27 | . 27 28 Device 12 | . 12 12 Storage 14 | . 14 14 Energy Gun 16 | . 14 26 Ballistic Gun 6 | . 7 . Slashing Weapon 3 | . 4 . Peak Build Rating 7 | 7 7 7 Average Rating 6 | 6 6 6 On Entrance 6 | 6 7 7 Avg Prop Armor Cover (%) . | . . . Naked Turns . | . . . Heaviest Build 15 | 14 15 14 Greatest Support 20 | 20 20 20 Greatest Overweight (x) . | . . . Average Overweight (x) . | . . . Largest Inventory Capacity 8 | 8 8 8 Average Capacity 8 | 8 8 8 Most Carried 8 | 6 8 8 Average Carried 7 | 6 7 8 Final Capacity 8 | 8 8 8 Final Carried 8 | 6 8 8 Class Distribution -------------------- 100% | Mutant Dominant Class ---------------- Mutant | -10/Materials Mutant | -10/Subcaves Resources | -11 -10 -10 ----------- Run | Yrd Mat Sub Matter Collected 527 | 222 305 . Remotely . | . . . Salvage Created 601 | 56 481 64 Parts 27 | 5 20 2 Haulers Intercepted . | . . . Recyclers Shooed . | . . . Parts Field Recycled . | . . . Retrieved Matter . | . . . Parts Self-Destructed 2 | . . 2 Prevented . | . . . Parts Restored . | . . . Kills | -11 -10 -10 ------- Run | Yrd Mat Sub Combat Hostiles Destroyed 13 | . 11 2 Melee 2 | . 2 . Guns 10 | . 9 1 AOE 1 | . . 1 Classes Destroyed 6 | 1 5 . Worker 1 | . 1 . Tunneler 3 | 3 . . Watcher 2 | . 2 . Swarmer 3 | . 3 . Grunt 7 | . 7 . Subdweller 3 | . 1 2 Best Kill Streak 3 | 2 3 2 Combat Bots Only 3 | . 3 2 Max Kills in Single Turn 2 | 1 2 1 Gunslinging 1 | . 1 . Exploded 1 | . . 1 Melee 1 | . 1 . Uniques/NPCs Destroyed . | . . . Combat | -11 -10 -10 -------- Run | Yrd Mat Sub Hostile Shots Fired 76 | . 68 8 Missed 21 | . 21 . Hits 55 | . 47 8 Projectile 55 | . 47 8 Critical Strikes 2 | . 2 . Damage Taken 870 | . 645 225 Core 251 | . 166 85 Absorbed by Shields . | . . . Core Remaining (%) 100 | 100 . . Volleys Fired 63 | 13 40 10 Largest 2 | 2 2 2 Hottest 100 | 70 100 100 Shots Fired 104 | 26 58 20 Gun 96 | 26 57 13 Cannon . | . . . Launcher 8 | . 1 7 Special . | . . . Kinetic 27 | 13 14 . Thermal 69 | 13 43 13 Explosive 8 | . 1 7 Electromagnetic . | . . . Robot Hit Streak 15 | 5 15 12 Robot Miss Streak 2 | 2 2 . Penetration Max . | . . . Secondary Targets 1 | . 1 . Max Gunslinging Chain 1 | . 1 . Shots Hit Robots 82 | 14 57 11 Core Hits 33 | 5 25 3 Critical Kills . | . . . Critical Parts Destroyed . | . . . Critical Strikes 3 | 2 1 . Burn 3 | 2 1 . Melee Attacks 17 | . 17 . Impact . | . . . Slashing 17 | . 17 . Piercing . | . . . Sneak Attacks . | . . . Combat Hostiles . | . . . Follow-up Attacks . | . . . Damage Inflicted 1216 | 141 845 230 Guns 794 | 141 553 100 Cannons . | . . . Explosions 162 | . 32 130 Melee 260 | . 260 . Ramming . | . . . Kinetic 120 | 53 67 . Thermal 674 | 88 486 100 Explosive 162 | . 32 130 Electromagnetic . | . . . Impact . | . . . Slashing 260 | . 260 . Piercing . | . . . Highest Corruption . | . . . Average Corruption . | . . . Corruption Purged . | . . . Corruption Blocked . | . . . Overload Shots . | . . . Overflow Damage . | . . . Projectiles . | . . . Explosions . | . . . Melee . | . . . Knockbacks . | . . . Impact . | . . . Kinetic . | . . . Secondary . | . . . Self-Inflicted Damage 36 | . . 36 Shots 3 | . . 3 Rammed . | . . . Targets Rammed . | . . . Kicked . | . . . Crushed . | . . . Highest Temperature 146 | 100 146 2 Average Temperature 46 | 36 52 2 Received Heat Transfer 417 | . 372 45 Siege Activations . | . . . Martial Activations . | . . . Shielding Activations . | . . . Robots Disrupted . | . . . Combat Hostiles . | . . . Robots Corrupted . | . . . Combat Hostiles . | . . . Parts Fried . | . . . Impact Corruptions . | . . . Robots Melted . | . . . Combat Hostiles . | . . . Parts Melted 6 | 3 2 1 Heat Transferred 2183 | 407 1480 296 Parts Sabotaged . | . . . Parts Stolen . | . . . Parts Stripped . | . . . Power Chain Reactions . | . . . Alert | -11 -10 -10 ------- Run | Yrd Mat Sub Maximum Alert Level . | . . . Low Security (%) 100 | 100 100 . Level 1 . | . . . Level 2 . | . . . Level 3 . | . . . Level 4 . | . . . Level 5 . | . . . High Security . | . . . Max Security . | . . . Peak Influence 92 | 5 92 . Initial 3 | . 3 . Average 21 | 1 23 . Influence Increases 343 | 15 328 . Destroy 0b10 Robot/C 200 | . 200 . Destroy 0b10 Robot/NC 30 | 15 15 . Destroy Leader 54 | . 54 . Successful Hack 17 | . 17 . Disable Machine 15 | . 15 . Destroy Structure 12 | . 12 . Lose Combat Pursuer 15 | . 15 . Influence Decreases 343 | 10 324 9 Entered New Map 7 | . 2 5 Time Decay 316 | 10 302 4 Lost Part 20 | . 20 . Squads Dispatched . | . . . Investigation . | . . . Extermination . | . . . Reinforcement . | . . . Assault . | . . . Garrison . | . . . Intercept . | . . . Searches Triggered . | . . . Construction Impeded . | . . . Haulers Reinforced . | . . . Active Scanning Responses . | . . . Cargo Convoy Interrupts . | . . . Stealth | -11 -10 -10 --------- Run | Yrd Mat Sub Distress Signals . | . . . Communications Jammed . | . . . Distress Signals . | . . . Times Spotted 18 | . 16 2 Peak Tracking Total 6 | . 6 1 Tactical Retreats 2 | . 2 . Traps | -11 -10 -10 ------- Run | Yrd Mat Sub Traps Triggered . | . . . Indirectly . | . . . Trap Hack Attempts . | . . . Triggered . | . . . Disarmed . | . . . Reprogrammed . | . . . Reused . | . . . Traps Extracted . | . . . Installed . | . . . Triggered . | . . . Machines | -11 -10 -10 ---------- Run | Yrd Mat Sub Machines Disabled 1 | . 1 . Max in Single Turn 1 | . 1 . Machines Repaired . | . . . Machines Dismantled . | . . . Machines Sabotaged . | . . . Overloaded Fab Kills . | . . . Hacking | -11 -10 -10 --------- Run | Yrd Mat Sub Machines Accessed 3 | . 3 . Terminals 3 | . 3 . Fabricators . | . . . Repair Stations . | . . . Recycling Units . | . . . Scanalyzers . | . . . Garrison Access . | . . . Total Hacks 14 | . 14 . Successful 7 | . 7 . Failed 7 | . 7 . Catastrophic . | . . . Database Lockouts . | . . . Manual 14 | . 14 . Terminals 14 | . 14 . Fabricators . | . . . Repair Stations . | . . . Recycling Units . | . . . Scanalyzers . | . . . Garrison Access . | . . . Terminal Hacks 4 | . 4 . Robot Analysis 3 | . 3 . Locate Traps 1 | . 1 . Fabricator Hacks . | . . . Repair Station Hacks . | . . . Recycling Unit Hacks . | . . . Scanalyzer . | . . . Garrison Access Hacks . | . . . Unauthorized Hacks 3 | . 3 . Terminals 3 | . 3 . Track 1 | . 1 . Botnet 2 | . 2 . Fabricators . | . . . Repair Stations . | . . . Recycling Units . | . . . Scanalyzers . | . . . Garrison Access . | . . . Data Cores Recovered . | . . . Used . | . . . Hacking Detections 3 | . 3 . Full Trace Events . | . . . Feedback Events . | . . . Feedback Blocked . | . . . Robot Schematics Acquired . | . . . Robots Built . | . . . Authchips . | . . . Time . | . . . Total Robot Build Rating . | . . . Part Schematics Acquired . | . . . Parts Built . | . . . Authchips . | . . . Time . | . . . Total Part Build Rating . | . . . Part Studies Acquired . | . . . Parts Repaired . | . . . Time . | . . . Parts Recycled . | . . . Recycled Matter . | . . . Retrieved Matter . | . . . Retrieved Components . | . . . Parts Scanalyzed . | . . . Part Schematics Acquired . | . . . Parts Damaged . | . . . Bothacking | -11 -10 -10 ------------ Run | Yrd Mat Sub Used RIF Installer . | . . . Robots Hacked . | . . . Non-combat . | . . . Combat . | . . . Robot Hacks Applied . | . . . Relay Couplers Released . | . . . Fabnet Peak Effective % . | . . . Robots Rewired . | . . . Allies Hacked . | . . . Hacks Repelled . | . . . Allies | -11 -10 -10 -------- Run | Yrd Mat Sub Total Allies . | . . . Largest Group . | . . . Highest-Rated Group . | . . . Highest-Rated Ally . | . . . Total Orders . | . . . Ally Attacks . | . . . Total Damage . | . . . Kills . | . . . Allies Corrupted . | . . . Allies Melted . | . . . Intel | -11 -10 -10 ------- Run | Yrd Mat Sub Active Infowar (turns) 897 | 5 697 195 Sensors 444 | . 249 195 Seismic 453 | 5 448 . Robot Analysis Total 2 | . 2 . Derelict Logs Recovered 2 | . . 2 Drone Launches . | . . . Drone Recoveries . | . . . Exploration | -11 -10 -10 ------------- Run | Yrd Mat Sub Turns Passed 1106 | 75 811 220 Spaces Moved 620 | 26 445 149 Core . | . . . Treads . | . . . Legs 620 | 26 445 149 Wheels . | . . . Hover . | . . . Flight . | . . . Fastest Speed 120 | 120 120 120 Average Speed 120 | 120 120 120 Slowest Speed 120 | 120 120 120 Overloaded Moves . | . . . Propulsion Burnouts . | . . . Robots Hopped . | . . . Potential Cave-ins . | . . . Cave-ins Triggered . | . . . Exploration Rate (%) 19 | 3 49 7 Regions Visited 2 Branch Regions 1 Pre-discovered Areas . | . . . Known Exits Taken . | . . . Unknown Exits Taken 2 | 1 1 . Scrap Searched . | . . . Spaces Dug 23 | . 12 11 Terrain Destroyed 64 | . 12 52 Melee . | . . . Projectile . | . . . AOE 64 | . 12 52 Terrain Rammed . | . . . Walls Destroyed . | . . . Machines Disabled . | . . . Actions | -11 -10 -10 --------- Run | Yrd Mat Sub Total 849 | 46 632 171 Wait 127 | 7 111 9 Move 618 | 25 444 149 Hop . | . . . Pick Up 6 | . 6 . Fast Attach 3 | 1 2 . Attach 4 | . 4 . Detach . | . . . Swap 7 | . 4 3 Drop 4 | . 4 . Fire 63 | 13 40 10 Melee 17 | . 17 . Ram . | . . . Kick . | . . . Crush . | . . . Escape Stasis . | . . . Rewire . | . . . Trap . | . . . Miscellaneous . | . . . Route ------- -11/Scrapyard -10/Materials (discovered 3 exits: [*Mat x2] / [*Sub]) -10/Subcaves (discovered 1 exit: Rec) History --------- Turn | Location | Event 1 | -11/Scrapyard | Discovered new exit (range 2) 76 | -11/Scrapyard | Entered Materials 309 | -10/Materials | Build established: Mutant 412 | -10/Materials | Discovered new exit (range 14) 576 | -10/Materials | Derelicts attacked the area 588 | -10/Materials | Lost 4 parts (1p1n1u1w) 726 | -10/Materials | Discovered new exit (range 4) 733 | -10/Materials | Core integrity fell below 50% 871 | -10/Materials | Discovered new exit (range 8) 887 | -10/Materials | Entered Subcaves 945 | -10/Subcaves | Identified exit to Recycling 1077 | -10/Subcaves | Ambushed by Subdweller buried in earth 1085 | -10/Subcaves | Core integrity fell below 20% 1098 | -10/Subcaves | Ambushed by Subdweller buried in earth 1107 | -10/Subcaves | Destroyed self with Grenade Launcher Last Messages --------------- 00871_ EXIT=FOUND LOCATION=UNKNOWN AMBIENT_HEAT=-10 GOAL=ESCAPE 00904_ Acquired derelict log, extracted data. Data stored: Storage entrances (x1). 00945_ Acquired derelict log, extracted data. Loading 1 Recycling entrance... 01078_ VR-J9D(R): "ARGHSUB!" 01082_ Sensor Array destroyed. 01088_ Sub. Power Source melted. 01088_ VR-J9D(R) destroyed. 01092_ The unstable cave ceiling collapses. 01093_ Subatomizers dissect the Disposable Heat Sink. 01097_ The unstable cave ceiling collapses. 01097_ Heat Sink crushed. 01099_ 6G-C6Z(R): "ARGHSUB!" 01105_ Subatomizers dissect the Disposable Heat Sink. 01105_ The unstable cave ceiling collapses. 01107_ 6G-C6Z(R) destroyed. Map ----- +----------------------------------------------------+ | ?????????????????????????????????????# | | ??????????????????????????????????#### | | ?????????????????????????????????## | | ?????????????????????????????????# | | ??????????????????????????????#### | | ??????????????????????????????# ## | | ???????????????????????????#### #### ### | | ???????????????????????????# #??# #?## | | ???????????????????????????# ## ### ##?## | | ??????????????????????????## ### ## ##?## | | ?????????????????????????## #?## ### #??### | | ?????????????????????##### ##?# ## ##???? | | ?????????????????????# #?# #### ###?? | | ?????????????????????## #??# #### ##? | | ??????????????????????## #### ### #? | | ???????????????????????# #? | | ??????????????????????## ##? | | ??????????????????????# #?? | | ??????????????????????# ##### #? | | ??????????????????????# ##??##### #? | | ??????????????????????# #??????## #? | | ?????????????????????## ##???????# ##? | | ?????????????????????# ###????????####?? | | ?????????????????????### ####???????????????? | | ?????????????????????### ##??????????????????? | | ?????????????????????# @ #???????????????????? | | ?????????????????????# * #???????????????????? | | ?????????????????????# =& #???????????????????? | | ?????????????????????# % #??????????????????? | | ????????????????????# & #??????????????????? | | ????????????????????## ##??????????????????? | | ????????????????????? #???????????????????? | | ????????????????????## ##???????????????????? | | ?????????????????????## ####????????????????????? | | ??????????????????????###????????????????????????? | | ?????????????????????????????????????????????????? | | ?????????????????????????????????????????????????? | | ?????????????????????????????????????????????????? | | ?????????????????????????????????????????????????? | | ?????????????????????????????????????????????????? | | ?????????????????????????????????????????????????? | | ??????????????????????>??????????????????????????? | | ?????????????????????????????????????????????????? | | ?????????????????????????????????????????????????? | | ?????????????????????????????????????????????????? | | ?????????????????????????????????????????????????? | | ?????????????????????????????????????????????????? | | ?????????????????????????????????????????????????? | | ?????????????????????????????????????????????????? | | ?????????????????????????????????????????????????? | +----------------------------------------------------+ Best States ------------- Heat Dissipation 25 Energy Generation 10 Energy Capacity 250 Matter Stores 300 Matter Capacity 300 Sight Range 16 Robot Scan Range 14 Terrain Scan Density 10 Evasion (%) 55 Item Schematics ----------------- None Robot Schematics ------------------ None Fabricated ------------ Nothing Repaired ---------- Nothing Studied --------- None Alien Tech Used ----------------- None Achievements -------------- None Challenges ------------ None Game ------ Seed ThiefNetworkedPit Manual? 0 Play Time 00:10:10 Cumulative 41.0 hours Start 2026.02.28 @ 22:29:55 End 2026.02.28 @ 22:38:44 Sessions 1 Manual Loads 0 Difficulty Rogue Special Mode None Game No. 56 Rogue 31 Adventurer 25 Explorer 0 Win Type - Total 0 Types 0/0/0/0/0/0/0/0/0/0 Lore% 26 Gallery% 33 Achievement% 27 Wizard Run 0 Options --------- Layout 0 ASCII 0 Keyboard 1 Movement Numpad Keybinds 0 Fullscreen 1 Font 24/Smallcaps Map View 183x50 Zoom Use 0% Tactical HUD 1 Map Filters NONE Filters NONE Steam 1 RUN: 6de7d565-b4bc-407e-a923-83e51c405b4c